Cogmind - Beta 16.1 @@@ ROGUE MODE // 2026.04.10 @ 03:49:42 Player: KURIIRI Result: Destroyed by XK-23B(R) with Subdweller Machine Gun Performance ------------- Evolutions (0) 0 Regions Visited (2) 400 Robots Destroyed (29) 145 Value Destroyed (532) 532 Prototype IDs (2) 40 Alien Tech Used (0) 0 Bonus (0) 0 TOTAL SCORE: 1117 Bonus ------- None Cogmind --------- Core Integrity 0/250 Matter 300/300 Energy 100/100 System Corruption 0% Temperature Cool (0) Movement Core (350) Ox6 Location -10/Subcaves Parts ------- > --- POWER (1) -------- (None) > --- PROPULSION (2) --- (None) > --- UTILITY (2) ------ Large Storage Unit > --- WEAPON (2) ------- (None) > --- INVENTORY (15) --- Light Ion Engine Light Treads Compact Wheel Compact Wheel Compact Wheel Small Storage Unit Cargo Storage Unit Large Matter Pod (150) EM Pulse Gun Light Assault Rifle Grenade Launcher Peak State ------------ > --- POWER ------------ Light Ion Engine > --- PROPULSION ------- Light Treads Light Treads > --- UTILITY ---------- Large Storage Unit Improved Terrain Scanner > --- WEAPON ----------- Assault Rifle Grenade Launcher > --- INVENTORY -------- Light Ion Engine Light Treads Compact Wheel Compact Wheel Small Storage Unit Cargo Storage Unit Large Matter Pod Light Assault Rifle Light Cannon [Rating: 10] Favorites ----------- Power Light Ion Engine Engine Light Ion Engine Propulsion Light Treads Treads Light Treads Leg Aluminum Leg Utility Improved Terrain Scanner Device Improved Terrain Scanner Storage Large Storage Unit Weapon Light Cannon Energy Gun EM Pulse Gun Ballistic Gun Assault Rifle Ballistic Cannon Light Cannon Launcher Grenade Launcher Build | -11 -10 -10 ------- Run | Yrd Mat Sub Slots Evolved . | . . . Power . | . . . Propulsion . | . . . Utility . | . . . Weapon . | . . . Parts Attached 10 | 1 9 . Power 1 | . 1 . Engine 1 | . 1 . Core . | . . . Reactor . | . . . Propulsion 3 | . 3 . Treads 3 | . 3 . Leg . | . . . Wheel . | . . . Hover . | . . . Flight . | . . . Utility 2 | 1 1 . Device 1 | 1 . . Storage 1 | . 1 . Processor . | . . . Hackware . | . . . Protection . | . . . Artifact . | . . . Weapon 4 | . 4 . Energy Gun 1 | . 1 . Energy Cannon . | . . . Ballistic Gun 1 | . 1 . Ballistic Cannon 1 | . 1 . Launcher 1 | . 1 . Special Weapon . | . . . Impact Weapon . | . . . Slashing Weapon . | . . . Piercing Weapon . | . . . Special Melee Weapon . | . . . Unidentified Prototypes . | . . . Parts Lost 8 | . 2 6 Power 2 | . 1 1 Propulsion 2 | . . 2 Utility 1 | . . 1 Weapon 3 | . 1 2 Highest Loss Streak 6 | . 1 6 To Critical Strikes . | . . . Average Backups 8 | 6 7 11 Power . | 1 . 1 Propulsion 3 | 4 3 4 Utility 2 | . 1 3 Weapon 1 | 1 1 3 Tool/Special . | . . . Unused Backups 13 | . 4 9 Power 2 | . 1 1 Propulsion 5 | . 2 3 Utility 3 | . . 3 Weapon 3 | . 1 2 Tool/Special . | . . . Average Slot Usage (%) 94 | . 94 91 Engine 9 | . 9 12 Treads 25 | . 25 25 Leg 2 | . 2 . Device 13 | . 14 12 Storage 14 | . 14 14 Energy Gun 4 | . 5 . Ballistic Gun 11 | . 10 12 Ballistic Cannon 10 | . 10 12 Peak Build Rating 10 | 9 10 10 Average Rating 9 | 6 9 9 On Entrance 8 | 6 9 10 Avg Prop Armor Cover (%) . | . . . Naked Turns . | . . . Heaviest Build 29 | 11 29 29 Greatest Support 40 | 20 40 40 Greatest Overweight (x) 1 | . 1 1 Average Overweight (x) . | . . . Largest Inventory Capacity 15 | 8 15 15 Average Capacity 14 | 8 14 15 Most Carried 12 | 6 12 12 Average Carried 8 | 6 8 12 Final Capacity 15 | 8 15 15 Final Carried 12 | 6 12 12 Class Distribution -------------------- 100% | Mutant Dominant Class ---------------- Mutant | -10/Materials Mutant | -10/Subcaves Resources | -11 -10 -10 ----------- Run | Yrd Mat Sub Matter Collected 803 | 220 562 21 Remotely . | . . . Salvage Created 888 | 125 742 21 Parts 47 | 6 38 3 Haulers Intercepted 2 | . 2 . Recyclers Shooed 2 | . 2 . Parts Field Recycled . | . . . Retrieved Matter . | . . . Parts Self-Destructed 14 | . . 14 Prevented . | . . . Parts Restored . | . . . Kills | -11 -10 -10 ------- Run | Yrd Mat Sub Combat Hostiles Destroyed 17 | . 17 . Guns 8 | . 8 . Cannons 6 | . 6 . AOE 3 | . 3 . Classes Destroyed 10 | 2 7 1 Worker 1 | . 1 . Tunneler 1 | 1 . . Hauler 2 | . 2 . Recycler 3 | 1 2 . Mechanic 1 | . 1 . Operator 1 | . 1 . Watcher 3 | . 3 . Swarmer 9 | . 9 . Grunt 8 | . 8 . Artisan 1 | . . 1 Best Kill Streak 9 | 2 9 . Combat Bots Only 9 | . 9 . Max Kills in Single Turn 2 | 1 2 1 Gunslinging . | . . . Exploded 2 | . 2 . Melee . | . . . Uniques/NPCs Destroyed . | . . . Combat | -11 -10 -10 -------- Run | Yrd Mat Sub Hostile Shots Fired 111 | . 84 27 Missed 29 | . 24 5 Hits 82 | . 60 22 Projectile 82 | . 60 22 AOE 4 | . . 4 Damage Taken 1136 | . 595 541 Core 258 | . 105 153 Absorbed by Shields . | . . . Regen/Repaired (Parts) 114 | . 114 . Core Remaining (%) 100 | 100 . . Volleys Fired 83 | 5 71 7 Largest 2 | 2 2 2 Hottest 70 | 40 70 50 Shots Fired 139 | 10 121 8 Gun 85 | 10 68 7 Cannon 51 | . 50 1 Launcher 3 | . 3 . Special . | . . . Kinetic 100 | 10 82 8 Thermal . | . . . Explosive 3 | . 3 . Electromagnetic 36 | . 36 . Robot Hit Streak 7 | 3 7 2 Robot Miss Streak 4 | 2 4 2 Penetration Max . | . . . Secondary Targets . | . . . Shots Hit Robots 72 | 5 63 4 Core Hits 40 | 4 35 1 Critical Kills . | . . . Critical Parts Destroyed . | . . . Critical Strikes . | . . . Melee Attacks . | . . . Impact . | . . . Slashing . | . . . Piercing . | . . . Sneak Attacks . | . . . Combat Hostiles . | . . . Follow-up Attacks . | . . . Damage Inflicted 1410 | 48 1325 37 Guns 712 | 48 627 37 Cannons 517 | . 517 . Explosions 181 | . 181 . Melee . | . . . Ramming . | . . . Kinetic 935 | 48 850 37 Thermal 56 | . 56 . Explosive 125 | . 125 . Electromagnetic 294 | . 294 . Impact . | . . . Slashing . | . . . Piercing . | . . . Highest Corruption . | . . . Average Corruption . | . . . Corruption Purged . | . . . Corruption Blocked . | . . . Overload Shots . | . . . Overflow Damage 9 | . 9 . Projectiles 1 | . 1 . Explosions 8 | . 8 . Melee . | . . . Knockbacks 4 | . 4 . Impact . | . . . Kinetic 3 | . 3 . Secondary 1 | . 1 . Self-Inflicted Damage 6 | . 6 . Shots 1 | . 1 . Rammed . | . . . Targets Rammed . | . . . Kicked . | . . . Crushed . | . . . Highest Temperature 117 | . 117 . Average Temperature 45 | . 45 . Received Heat Transfer 264 | . 210 54 Siege Activations . | . . . Martial Activations . | . . . Shielding Activations . | . . . Robots Disrupted . | . . . Combat Hostiles . | . . . Robots Corrupted . | . . . Combat Hostiles . | . . . Parts Fried . | . . . Impact Corruptions . | . . . Robots Melted . | . . . Combat Hostiles . | . . . Parts Melted . | . . . Heat Transferred 100 | . 100 . Parts Sabotaged . | . . . Parts Stolen . | . . . Parts Stripped . | . . . Power Chain Reactions 1 | . 1 . Alert | -11 -10 -10 ------- Run | Yrd Mat Sub Maximum Alert Level 1 | . 1 . Low Security (%) 65 | 100 65 . Level 1 34 | . 34 . Level 2 . | . . . Level 3 . | . . . Level 4 . | . . . Level 5 . | . . . High Security . | . . . Max Security . | . . . Peak Influence 347 | 10 347 . Initial 6 | . 6 . Average 136 | 5 137 . Influence Increases 737 | 10 652 75 Destroy 0b10 Robot/C 340 | . 340 . Destroy 0b10 Robot/NC 60 | 10 50 . Destroy Leader 80 | . 80 . Successful Hack 29 | . 29 . Select Force Hacks 60 | . 60 . Disable Machine 75 | . 75 . Destroy Structure 18 | . 18 . Lose Combat Pursuer 75 | . . 75 Influence Decreases 702 | . 568 134 Entered New Map 50 | . 4 46 Time Decay 452 | . 394 58 Lost Part 50 | . 20 30 Purge Threat 150 | . 150 . Squads Dispatched 3 | . 3 . Investigation 3 | . 3 . Extermination . | . . . Reinforcement . | . . . Assault . | . . . Garrison . | . . . Intercept . | . . . Searches Triggered . | . . . Construction Impeded . | . . . Haulers Reinforced . | . . . Active Scanning Responses . | . . . Cargo Convoy Interrupts . | . . . Stealth | -11 -10 -10 --------- Run | Yrd Mat Sub Distress Signals . | . . . Communications Jammed . | . . . Distress Signals . | . . . Times Spotted 38 | . 29 9 Peak Tracking Total 10 | . 6 10 Tactical Retreats 1 | . . 1 Traps | -11 -10 -10 ------- Run | Yrd Mat Sub Traps Triggered . | . . . Indirectly . | . . . Trap Hack Attempts . | . . . Triggered . | . . . Disarmed . | . . . Reprogrammed . | . . . Reused . | . . . Traps Extracted . | . . . Installed . | . . . Triggered . | . . . Machines | -11 -10 -10 ---------- Run | Yrd Mat Sub Machines Disabled 5 | . 5 . Max in Single Turn 1 | . 1 . Machines Repaired . | . . . Machines Dismantled . | . . . Machines Sabotaged . | . . . Overloaded Fab Kills . | . . . Hacking | -11 -10 -10 --------- Run | Yrd Mat Sub Machines Accessed 10 | . 10 . Terminals 7 | . 7 . Fabricators . | . . . Repair Stations 1 | . 1 . Recycling Units 2 | . 2 . Scanalyzers . | . . . Garrison Access . | . . . Total Hacks 33 | . 33 . Successful 17 | . 17 . Failed 16 | . 16 . Catastrophic 1 | . 1 . Database Lockouts . | . . . Manual 18 | . 18 . Terminals 24 | . 24 . Fabricators . | . . . Repair Stations 5 | . 5 . Recycling Units 4 | . 4 . Scanalyzers . | . . . Garrison Access . | . . . Terminal Hacks 8 | . 8 . Robot Analysis 2 | . 2 . Prototype ID Bank 1 | . 1 . Unreport Threat 1 | . 1 . Locate Traps 1 | . 1 . Registered Components 1 | . 1 . Zone Layout 2 | . 2 . Fabricator Hacks . | . . . Repair Station Hacks 3 | . 3 . Scan Component 2 | . 2 . Repair 1 | . 1 . Recycling Unit Hacks . | . . . Scanalyzer . | . . . Garrison Access Hacks . | . . . Unauthorized Hacks 6 | . 6 . Terminals 4 | . 4 . Botnet 2 | . 2 . Operators 1 | . 1 . Skim 1 | . 1 . Fabricators . | . . . Repair Stations . | . . . Recycling Units 2 | . 2 . Tunnel 2 | . 2 . Scanalyzers . | . . . Garrison Access . | . . . Data Cores Recovered 1 | . 1 . Used . | . . . Hacking Detections 9 | . 9 . Full Trace Events 1 | . 1 . Feedback Events . | . . . Feedback Blocked . | . . . Robot Schematics Acquired . | . . . Robots Built . | . . . Authchips . | . . . Time . | . . . Total Robot Build Rating . | . . . Part Schematics Acquired . | . . . Parts Built . | . . . Authchips . | . . . Time . | . . . Total Part Build Rating . | . . . Part Studies Acquired . | . . . Parts Repaired 1 | . 1 . Time 26 | . 26 . Parts Recycled . | . . . Recycled Matter . | . . . Retrieved Matter . | . . . Retrieved Components . | . . . Parts Scanalyzed . | . . . Part Schematics Acquired . | . . . Parts Damaged . | . . . Bothacking | -11 -10 -10 ------------ Run | Yrd Mat Sub Used RIF Installer . | . . . Robots Hacked . | . . . Non-combat . | . . . Combat . | . . . Robot Hacks Applied . | . . . Relay Couplers Released . | . . . Fabnet Peak Effective % . | . . . Robots Rewired . | . . . Allies Hacked . | . . . Hacks Repelled . | . . . Allies | -11 -10 -10 -------- Run | Yrd Mat Sub Total Allies . | . . . Largest Group . | . . . Highest-Rated Group . | . . . Highest-Rated Ally . | . . . Total Orders . | . . . Ally Attacks . | . . . Total Damage . | . . . Kills . | . . . Allies Corrupted . | . . . Allies Melted . | . . . Intel | -11 -10 -10 ------- Run | Yrd Mat Sub Active Infowar (turns) 1643 | 4 1386 253 Terrain 1643 | 4 1386 253 Robot Analysis Total 2 | . 2 . Derelict Logs Recovered . | . . . Drone Launches . | . . . Drone Recoveries . | . . . Exploration | -11 -10 -10 ------------- Run | Yrd Mat Sub Turns Passed 1691 | 19 1386 286 Spaces Moved 820 | 4 672 144 Core . | . . . Treads 726 | . 582 144 Legs 94 | 4 90 . Wheels . | . . . Hover . | . . . Flight . | . . . Fastest Speed 120 | 120 120 160 Average Speed 155 | 120 155 161 Slowest Speed 240 | 120 190 240 Overloaded Moves . | . . . Propulsion Burnouts . | . . . Robots Hopped . | . . . Potential Cave-ins . | . . . Cave-ins Triggered . | . . . Exploration Rate (%) 35 | 2 97 7 Regions Visited 2 Branch Regions 1 Pre-discovered Areas 2 | . 2 . Known Exits Taken . | . . . Unknown Exits Taken 2 | 1 1 . Scrap Searched . | . . . Spaces Dug . | . . . Terrain Destroyed 14 | . 14 . Melee . | . . . Projectile . | . . . AOE 14 | . 14 . Terrain Rammed . | . . . Walls Destroyed . | . . . Machines Disabled . | . . . Actions | -11 -10 -10 --------- Run | Yrd Mat Sub Total 1092 | 9 893 190 Wait 169 | . 130 39 Move 818 | 3 671 144 Hop . | . . . Pick Up 9 | . 9 . Fast Attach 1 | 1 . . Attach 3 | . 3 . Detach . | . . . Swap 7 | . 7 . Drop 2 | . 2 . Fire 83 | 5 71 7 Melee . | . . . Ram . | . . . Kick . | . . . Crush . | . . . Escape Stasis . | . . . Rewire . | . . . Trap . | . . . Miscellaneous . | . . . Route ------- -11/Scrapyard -10/Materials (discovered 6 exits: [*Mat x3] / [*Min x2] / [*Sub]) -10/Subcaves History --------- Turn | Location | Event 15 | -11/Scrapyard | Discovered new exit (range 1) 20 | -11/Scrapyard | Entered Materials 112 | -10/Materials | Discovered new exit (range 13) 277 | -10/Materials | Discovered new exit (range 7) 304 | -10/Materials | Build established: Mutant 351 | -10/Materials | Discovered new exit (range 5) 658 | -10/Materials | Destroyed 9 combat bots 879 | -10/Materials | Discovered new exit (range 3) 966 | -10/Materials | Repaired Lgt. Treads 1072 | -10/Materials | Discovered new exit (range 10) 1394 | -10/Materials | Discovered new exit (range 9) 1406 | -10/Materials | Entered Subcaves 1469 | -10/Subcaves | A swath of the cavern ceiling suddenly collapsed 1662 | -10/Subcaves | Core integrity fell below 50% 1665 | -10/Subcaves | Ambushed by Subdweller buried in earth 1687 | -10/Subcaves | Core integrity fell below 20% 1692 | -10/Subcaves | Destroyed by XK-23B(R) with Subdweller Machine Gun Last Messages --------------- 01621_ KI-RKL(R): "ECOKILL!" 01659_ Imp. Terrain Scanner destroyed. 01665_ Lgt. Treads destroyed. 01665_ Lgt. Ion Engine destroyed. 01665_ Machine disabled. 01666_ GM-NG1(R): "NAT20!" 01668_ Lgt. Cannon destroyed. 01669_ Assault Rifle destroyed. 01669_ S-10 Pest suffers critical hit (Destroy). 01672_ GM-NG1(R) destroyed. 01675_ S-10 Pest destroyed. 01676_ Lgt. Treads destroyed. 01679_ KI-RKL(R) suffers critical hit (Destroy). 01679_ KI-RKL(R) destroyed. 01682_ Flight Unit fries itself beyond repair. 01684_ Lgt. Assault Rifle fries itself beyond repair. 01687_ S-10 Pest destroyed. 01691_ Lgt. Assault Rifle fries itself beyond repair. Map ----- +----------------------------------------------------+ | ###??##### ##??????????????????????????? | | #??????## ## ##?????????????????????????? | | ##??#??## ### #?????????????????????????? | | #?##??# ### #?????????????????????????? | | ###????# ## ##????? ??????????????????? | | ##???## ###?? #??????????????????? | | ##### ### #??????????????????? | | #??????????????????? | | = #???????????????????????? | | * = #???????????????????????? | | ##### ### ????????????????? | | ###?## ####?# ##?????????????????? | | ########???#? ##??????????????????? | | #???????? #???????????????????? | | # ##????#?? ##??#????????????????? | | ## #### ##????#? #### #????????????????????? | | ## # #???######" ???????????????????? | | # # ##?### ### ???????????????????? | | ## #### # ?????????????????????? | | ?## # # ## #" ??????????????????????? | | ??####""" ## ; "???????????????????????? | | ????## " #; # "?????????????????????????? | | ????#" %##??????????#?????????????? | | ?#??#" [ ####???# #?????????????? | | ?# """ """# ; ## #??????????????? | | """""""""" %% R@ #????????????????? | | ? """ ! R ###????????????????? | | ? ### =%% ;# ##??????????????????? | | ? #???#### ## [! ;;## #???????????????????? | | ???##????####### ##?# #??????????????????? | | ???????????????### #####??? ##??????????????????? | | ?????????????????###?????????#???????????????????? | | ???#?????????????????????????????????????????????? | | ???????????????????#?????????????????????????????? | | ?????????????????????????????????????????????????? | | ?????????????????????????????????????????????????? | | ?????????????????????????????????????????????????? | | ?????????????????????????????????????????????????? | | ?????????????????????????????????????????????????? | | ?????????????????????????????????????????????????? | | ?????????????????????????????????????????????????? | | ?????????????????????????????????????????????????? | | ?????????????????????????????????????????????????? | | ?????????????????????????????????????????????????? | | ?????????????????????????????????????????????????? | | ?????????????????????????????????????????????????? | | ?????????????????????????????????????????????????? | | ?????????????????????????????????????????????????? | | ?????????????????????????????????????????????????? | | ?????????????????????????????????????????????????? | +----------------------------------------------------+ Best States ------------- Heat Dissipation 25 Energy Generation 10 Energy Capacity 125 Matter Stores 300 Matter Capacity 300 Sight Range 16 Terrain Scan Range 16 Terrain Scan Density 10 Evasion (%) 55 Recoil Reduction 2 Item Schematics ----------------- None Robot Schematics ------------------ None Fabricated ------------ Nothing Repaired ---------- Lgt. Treads | 18% | -10/Materials Studied --------- None Alien Tech Used ----------------- None Achievements -------------- None Challenges ------------ None Game ------ Seed RainbowMachinePenetrator Manual? 0 Play Time 00:10:31 Cumulative 401.5 hours Start 2026.04.10 @ 03:36:48 End 2026.04.10 @ 03:49:42 Sessions 3 Manual Loads 0 Difficulty Rogue Special Mode None Game No. 341 Rogue 305 Adventurer 36 Explorer 0 Win Type - Total 5 Types 2/0/0/1/0/0/0/2/0/0 Lore% 75 Gallery% 67 Achievement% 56 Wizard Run 0 Options --------- Layout 1 ASCII 0 Keyboard 0 Movement Numpad Keybinds 0 Fullscreen 1 Font 48/Smallcaps Map View 50x35 Zoom Use 0% Tactical HUD 1 Map Filters NONE Filters NONE Steam 1 RUN: 8a932817-cc51-4e56-ba94-d691e4a7d9e0